fUSD/lending_fUSD_20240529
["ID","MTS","AMOUNT","RATE_DAILY","PERIOD"]
[328184337,1717021837892,-150.0,0.00027992,2]
[328184338,1717021837901,-153.69691663,0.00028027,2]
[328184339,1717021837911,-157.35204194,0.00028043,2]
[328184340,1717021837921,-6798.7264,0.00028056,2]
[328184341,1717021837930,-6629.48571753,0.00028074,2]
[328184343,1717021837939,-159.25974205,0.00028091,2]
[328184345,1717021837948,-150.0,0.000281,2]
[328184347,1717021837959,-1220.27380054,0.00028101,2]
[328184349,1717021837968,-154.49299365,0.00028105,2]
[328184351,1717021837978,-8149.0,0.00028106,2]
[328184353,1717021837987,-524.95,0.00028156,2]
[328184355,1717021837996,-524.95,0.00028156,2]
[328184357,1717021838006,-524.95,0.00028156,2]
[328184359,1717021838016,-524.95,0.00028156,2]
[328184361,1717021838025,-524.95,0.00028156,2]
[328184363,1717021838035,-1049.9,0.00028156,2]
[328184365,1717021838044,-524.95,0.00028156,2]
[328184367,1717021838054,-524.95,0.00028156,2]
[328184369,1717021838064,-524.95,0.00028156,2]
[328184371,1717021838074,-524.95,0.00028156,2]
[328184373,1717021838083,-1046.84,0.00028156,2]
[328184375,1717021838093,-524.95,0.00028156,2]
[328184377,1717021838103,-524.95,0.00028156,2]
[328184379,1717021838113,-524.95,0.00028156,2]
[328184381,1717021838123,-524.95,0.00028156,2]
[328184383,1717021838133,-302.2822,0.00028183,2]
[328184385,1717021838143,-150.0,0.000282,5]
[328184387,1717021838152,-151.7398263,0.00028216,2]
[328184389,1717021838162,-20240.42894403,0.00028225,2]
[328184392,1717021838172,-4280.20785995,0.00028228,2]
[328184394,1717021838182,-800.0,0.00028247,2]
[328184396,1717021838192,-223.93744377,0.00028282,2]
[328184398,1717021838203,-6896.26185247,0.00028283,2]
[328184401,1717021838222,-7007.18807222,0.00028283,2]
[328184422,1717021840609,-2012.93242841,0.00028283,2]
[328184423,1717021841460,-406.7734298,0.00028283,2]
[328184424,1717021841471,-2723.68358874,0.00028283,2]
[328184425,1717021841483,-840.71707407,0.00028283,2]
[328184426,1717021841548,-513.48021401,0.00028283,2]
[328184427,1717021841560,-1333.99259996,0.00028283,2]
[328184428,1717021841668,-575.9895316,0.00028283,2]
[328184429,1717021841680,-15211.23089628,0.00028283,2]
[328184430,1717021841689,-500.0,0.00028283,2]
[328184431,1717021841805,-2615.12550374,0.00028283,2]
[328184432,1717021841828,-243.26790512,0.00028283,2]
[328184433,1717021841836,-67.45209488,0.00028283,2]
[328184446,1717021842928,-279.13914063,0.00028283,2]
[328184447,1717021842937,-1045.0850026,0.00028283,2]
[328184448,1717021842947,-1201.01715964,0.00028283,2]
[328184449,1717021842956,-1040.64226312,0.00028283,2]
[328184450,1717021842966,-446.03480506,0.00028283,2]
[328184451,1717021842976,-2000.0,0.00028283,2]
[328184452,1717021842986,-200.0,0.00028283,2]
[328184453,1717021842995,-1825.44564,0.00028283,2]
[328184454,1717021843006,-4740.9306026,0.00028286,2]
[328184455,1717021843018,-151.79458304,0.00028414,2]
[328184456,1717021843027,-929.85231126,0.00028418,2]
[328184457,1717021843037,-150.74,0.00028445,2]
[328184458,1717021843046,-156.17927822,0.00028481,2]
[328184459,1717021843056,-167.0,0.00028552,2]
[328184460,1717021843067,-505.7,0.00028557,2]
[328184461,1717021843076,-200.0,0.00028566,2]
[328184462,1717021843086,-159.25974205,0.00028658,2]
[328184463,1717021843095,-150.0,0.000287,5]
[328184464,1717021843104,-157.78406003,0.00028712,2]
[328184465,1717021843116,-161.45029012,0.00028781,2]
[328184466,1717021843128,-506.26761822,0.00028781,2]
[328184467,1717021843171,-17644.195421,0.00028781,2]
[328184468,1717021843182,-1928.51561469,0.00028781,2]
[328184469,1717021843191,-4280.20785995,0.00028784,2]
[328184470,1717021843202,-162.87470479,0.00028793,2]
[328184471,1717021843211,-910.0,0.000288,2]
[328184472,1717021843222,-1220.27380054,0.000288,2]
[328184473,1717021843232,-201.51960871,0.0002881,2]
[328184474,1717021843241,-166.66666667,0.00028845,2]
[328184475,1717021843252,-1300.0,0.000289,10]
[328184476,1717021843264,-186.55,0.00028918,2]
[328184477,1717021843273,-172.66527975,0.00028933,2]
[328184478,1717021843283,-3267.04476445,0.00028935,2]
[328184479,1717021843291,-157.35204194,0.00028958,2]
[328184480,1717021843301,-157.35204194,0.00028984,2]
[328184481,1717021843313,-151.33,0.0002899,2]
[328184482,1717021843324,-167.31,0.0002899,2]
[328184483,1717021843334,-167.31,0.0002899,2]
[328184484,1717021843343,-167.31,0.0002899,2]
[328184485,1717021843352,-2813.03132929,0.00028998,2]
[328184486,1717021843362,-198.028393,0.00028998,2]
[328184487,1717021843372,-1120.93170164,0.00028998,2]
[328184488,1717021843381,-157.92331703,0.00028998,2]
[328184489,1717021843391,-203.96513052,0.00028998,2]
[328184490,1717021843400,-12796.82276578,0.00028998,2]
[328184491,1717021843410,-209.09061157,0.00028998,2]
[328184492,1717021843419,-894.45284741,0.00028998,2]
[328184493,1717021843429,-155.92992075,0.00028998,2]
[328184494,1717021843438,-268.32530534,0.00028998,2]
[328184495,1717021843448,-221.48704095,0.00028998,2]
[328184496,1717021843458,-282.44814109,0.00028998,2]
[328184497,1717021843467,-203.60961677,0.00028999,2]
[328184498,1717021843476,-2508.01907042,0.00028999,2]
[328184499,1717021843486,-1484.72664705,0.00029,2]
[328184500,1717021843496,-1035.810577,0.00029,2]
[328184501,1717021843505,-10287.94780156,0.00029,2]
[328184502,1717021843517,-2341.34282718,0.00029,2]
[328184503,1717021843533,-842.7100002,0.00029,2]
[328184504,1717021843547,-7569.79999997,0.00029,2]
[328184505,1717021843559,-1497.46574981,0.00029,2]
[328184506,1717021843605,-460.6,0.0002899,10]
[328184507,1717021843615,-2054.96,0.00029,2]
[328184508,1717021843627,-13614.2006,0.00029,2]
[328184521,1717021846021,-306.21779093,0.00027334,2]
[328184522,1717021846033,-218.73220907,0.00027334,2]
[328184523,1717021846043,-155.0,0.00028989,2]
[328184524,1717021846053,-110.14498276,0.00028989,2]
[328184525,1717021846066,-905.72771757,0.00028989,2]
[328184526,1717021846078,-333.44227772,0.00028989,2]
[328184527,1717021846087,-11302.74549598,0.00029,2]
[328184528,1717021846099,-10959.401589,0.00029,2]
[328184529,1717021846110,-296.26673161,0.00029,2]
[328184530,1717021846254,-979.4947449,0.00029,2]
[328184531,1717022066421,300.09661675,0.00033683,60]
[328184534,1717022235839,787.39377653,0.00033683,30]
[328184538,1717022616748,1309.39480037,0.00033682,30]
[328184546,1717022781347,1000.0,0.00033682,30]
[328184547,1717022821553,8841.21,0.00023415,60]
[328184589,1717023032150,-172.43,0.00013973,2]
[328184590,1717023032159,-328.34116078,0.00016852,2]
[328184591,1717023032168,-19520.45595153,0.00016853,2]
[328184592,1717023032178,-169.09819884,0.00016854,2]
[328184593,1717023032189,-803.0,0.00016952,2]
[328184594,1717023032199,-309.452495,0.00016953,2]
[328184595,1717023032208,-576.97713249,0.00016956,2]
[328184596,1717023032217,-300.0,0.00017059,2]
[328184597,1717023032226,-150.0,0.00017233,2]
[328184598,1717023032235,-499.99,0.0001726,2]
[328184599,1717023032245,-410.89835827,0.00019,2]
[328184600,1717023032254,-155.0,0.0002,2]
[328184601,1717023032263,-197.054,0.00020048,2]
[328184602,1717023032272,-226.37143728,0.000201,2]
[328184603,1717023032281,-480.38,0.00021539,2]
[328184604,1717023032290,-936.0,0.0002312,2]
[328184605,1717023032300,-250.0,0.00023198,2]
[328184606,1717023032309,-95.53323767,0.00023201,2]
[328184607,1717023032321,-104.46676233,0.00023201,2]
[328184608,1717023032331,-1936.65,0.00023306,2]
[328184609,1717023032340,-250.0,0.00023309,2]
[328184610,1717023032349,-5574.67,0.00023317,2]
[328184611,1717023032358,-1391.85,0.00023354,2]
[328184612,1717023032368,-450.26,0.00023365,2]
[328184613,1717023032377,-2007.4407583,0.000234,2]
[328184614,1717023032387,-1045.0850026,0.00023415,2]
[328184615,1717023032396,-37522.24968756,0.00023415,2]
[328184616,1717023032406,-1040.64226312,0.00023415,2]
[328184617,1717023032415,-446.03480506,0.00023415,2]
[328184618,1717023032424,-150.0,0.00023468,2]
[328184619,1717023032434,-2000.0,0.00023571,2]
[328184620,1717023032443,-480.38,0.00023803,2]
[328184621,1717023032452,-515.67,0.00023824,2]
[328184622,1717023032462,-242.36,0.00023846,2]
[328184623,1717023032471,-515.67,0.00023889,2]
[328184624,1717023032480,-515.67,0.00023955,2]
[328184625,1717023032489,-515.67,0.0002402,2]
[328184626,1717023032499,-515.67,0.00024085,2]
[328184627,1717023032509,-175.33,0.00024099,2]
[328184628,1717023032518,-1037.05506406,0.000241,2]
[328184629,1717023032527,-515.67,0.00024151,2]
[328184630,1717023032537,-160.0,0.00024167,2]
[328184631,1717023032546,-395.15755864,0.0002421,2]
[328184632,1717023032556,-515.67,0.00024216,2]
[328184633,1717023032566,-515.67,0.00024281,2]
[328184634,1717023032575,-515.67,0.00024347,2]
[328184635,1717023032584,-592.53,0.00024365,2]
[328184636,1717023032593,-515.67,0.00024412,2]
[328184637,1717023032603,-515.67,0.00024477,2]
[328184638,1717023032612,-515.67,0.00024543,2]
[328184639,1717023032622,-515.67,0.00024608,2]
[328184640,1717023032631,-893.12,0.00024611,2]
[328184641,1717023032640,-515.67,0.00024673,2]
[328184642,1717023032650,-152.68932534,0.000247,2]
[328184643,1717023032659,-515.67,0.00024739,2]
[328184644,1717023032668,-155.33436503,0.00024763,2]
[328184645,1717023032678,-152.32476694,0.00024784,2]
[328184646,1717023032688,-184.99697368,0.00024795,2]
[328184647,1717023032698,-515.67,0.00024804,2]
[328184648,1717023032711,-515.67,0.00024869,2]
[328184649,1717023032720,-184.99697368,0.00024908,2]
[328184650,1717023032731,-150.98821789,0.00024933,2]
[328184651,1717023032740,-515.67,0.00024935,2]
[328184652,1717023032751,-1742.42387438,0.00024946,2]
[328184653,1717023032762,-1742.42387438,0.00024949,2]
[328184654,1717023032771,-515.67,0.00025,2]
[328184655,1717023032780,-1273.77105689,0.00025014,2]
[328184656,1717023032789,-23890.0,0.00025065,2]
[328184657,1717023032799,-226.03,0.00025065,2]
[328184658,1717023032808,-250.0,0.00025065,2]
[328184659,1717023032818,-500.0,0.00025065,2]
[328184660,1717023032827,-515.67,0.00025065,2]
[328184661,1717023032837,-155.36105778,0.00025067,2]
[328184662,1717023032846,-152.60795887,0.00025322,2]
[328184663,1717023032856,-305.58879956,0.00025381,2]
[328184664,1717023032865,-150.98821789,0.00025565,2]
[328184665,1717023032956,-1742.42387438,0.00025618,2]
[328184666,1717023032979,-184.99697368,0.00025671,2]
[328184667,1717023032988,-180.0,0.0002568,2]
[328184668,1717023032997,-152.32476694,0.00025753,2]
[328184669,1717023033007,-305.58879956,0.00025771,2]
[328184670,1717023033017,-150.98821789,0.00025893,2]
[328184671,1717023033026,-1712.08314398,0.000259,2]
[328184672,1717023033035,-152.68932534,0.00025916,2]
[328184673,1717023033044,-150.98821789,0.00025956,2]
[328184674,1717023033053,-1742.42387438,0.0002597,2]
[328184675,1717023033062,-203.62278973,0.00025998,2]
[328184676,1717023033071,-100000.0,0.00026,2]
[328184677,1717023033082,-1000.0,0.00026,2]
[328184678,1717023033091,-184.99697368,0.00026002,2]
[328184679,1717023033099,-184.99697368,0.00026005,2]
[328184680,1717023033108,-936.0,0.00026009,2]
[328184681,1717023033119,-480.38,0.00026067,2]
[328184682,1717023033128,-184.99697368,0.00026072,2]
[328184683,1717023033139,-152.60795887,0.00026086,2]
[328184684,1717023033149,-155.47010219,0.00026098,2]
[328184685,1717023033159,-333.0028229,0.00026098,2]
[328184686,1717023033168,-1742.42387438,0.00026104,2]
[328184687,1717023033178,-305.58879956,0.00026165,2]
[328184688,1717023033187,-184.99697368,0.00026198,2]
[328184689,1717023033198,-154.52980888,0.00026379,2]
[328184690,1717023033207,-154.52980888,0.00026464,2]
[328184691,1717023033217,-1712.08314398,0.00026467,2]
[328184692,1717023033226,-152.68932534,0.00026591,2]
[328184693,1717023033236,-305.58879956,0.00026612,2]
[328184694,1717023033247,-305.58879956,0.00026738,2]
[328184695,1717023033256,-150.98821789,0.00026781,2]
[328184696,1717023033266,-183.24783967,0.00026864,2]
[328184697,1717023033275,-166.66666668,0.0002689,2]
[328184698,1717023033285,-184.99697368,0.00026906,2]
[328184699,1717023033294,-1742.42387438,0.00026936,2]
[328184700,1717023033304,-184.99697368,0.00026952,2]
[328184701,1717023033316,-150.98821789,0.00026952,2]
[328184702,1717023033326,-184.99697368,0.00026954,2]
[328184703,1717023033335,-4019.70433189,0.00027,2]
[328184704,1717023033344,-214.60592809,0.00027,2]
[328184705,1717023033354,-2000.0,0.00027,2]
[328184706,1717023033363,-3054.488804,0.0002701,2]
[328184707,1717023033373,-1712.08314398,0.00027034,2]
[328184708,1717023033384,-1742.42387438,0.00027075,2]
[328184709,1717023033395,-157.78406004,0.00027151,2]
[328184710,1717023033404,-184.99697368,0.00027265,2]
[328184711,1717023033413,-184.99697368,0.00027315,2]
[328184712,1717023033422,-152.68932534,0.00027374,2]
[328184713,1717023033431,-828.98,0.00027397,2]
[328184714,1717023033441,-196.41,0.00027397,10]
[328184715,1717023033451,-351.09,0.00027397,10]
[328184716,1717023033461,-225.92,0.000274,2]
[328184717,1717023033472,-154.52980888,0.00027422,2]
[328184718,1717023033482,-155.36105778,0.00027428,2]
[328184719,1717023033492,-305.58879956,0.00027483,2]
[328184720,1717023033502,-250.28915765,0.00027506,2]
[328184721,1717023033511,-184.99697368,0.00027511,2]
[328184722,1717023033521,-1712.08314398,0.00027602,2]
[328184723,1717023033531,-305.58879956,0.00027688,2]
[328184724,1717023033541,-152.68932534,0.00027719,2]
[328184725,1717023033551,-305.58879956,0.00027771,2]
[328184726,1717023033560,-226.03,0.00027805,2]
[328184727,1717023033569,-152.96549234,0.00027813,2]
[328184728,1717023033578,-159.25974206,0.0002782,2]
[328184729,1717023033588,-154.52980888,0.00027847,2]
[328184730,1717023033597,-200.0,0.00027869,2]
[328184731,1717023033607,-500.0,0.00027869,2]
[328184732,1717023033616,-200.0,0.00027869,2]
[328184733,1717023033625,-1742.42387438,0.00027925,2]
[328184734,1717023033634,-155.36105778,0.00027993,2]
[328184735,1717023033644,-385.0,0.00027994,5]
[328184736,1717023033653,-160.35351265,0.00028051,2]
[328184737,1717023033662,-152.68932534,0.00028076,2]
[328184738,1717023033672,-524.95,0.00028097,2]
[328184739,1717023033682,-524.95,0.00028097,2]
[328184740,1717023033693,-524.95,0.00028097,2]
[328184741,1717023033705,-524.95,0.00028097,2]
[328184742,1717023033714,-457.60267522,0.00028105,2]
[328184743,1717023033726,-1712.08314398,0.00028169,2]
[328184744,1717023033737,-1000.0,0.000282,2]
[328184745,1717023033746,-152.68932534,0.00028205,2]
[328184746,1717023033757,-184.99697368,0.0002821,2]
[328184747,1717023033767,-152.68932534,0.00028329,2]
[328184748,1717023033777,-480.38,0.00028331,2]
[328184749,1717023033789,-166.66666667,0.00028356,2]
[328184750,1717023033800,-1742.42387438,0.00028372,2]
[328184751,1717023033809,-215.13326472,0.00028418,2]
[328184752,1717023033818,-150.0,0.00028438,2]
[328184753,1717023033827,-150.0,0.00028493,2]
[328184754,1717023033836,-352.49,0.00028493,2]
[328184755,1717023033846,-150.0,0.00028493,2]
[328184756,1717023033857,-352.49,0.00028493,2]
[328184757,1717023033866,-352.49,0.00028493,2]
[328184758,1717023033875,-150.0,0.00028493,2]
[328184759,1717023033885,-524.95,0.00028493,2]
[328184760,1717023033894,-457.6026752,0.00028504,2]
[328184761,1717023033903,-305.58879956,0.00028665,2]
[328184762,1717023033912,-1742.42387438,0.00028681,2]
[328184763,1717023033922,-305.58879956,0.00028707,2]
[328184764,1717023033931,-1727.58972,0.0002871,2]
[328184765,1717023033941,-155.33436503,0.00028735,2]
[328184766,1717023033950,-1712.08314398,0.00028736,2]
[328184767,1717023033959,-305.58879956,0.00028819,2]
[328184768,1717023033969,-152.68932534,0.00028828,2]
[328184769,1717023033978,-305.58879956,0.00028834,2]
[328184770,1717023033987,-225.92,0.0002889,2]
[328184771,1717023033997,-7500.0,0.00028898,2]
[328184772,1717023034006,-936.0,0.00028899,2]
[328184773,1717023034016,-214.0,0.000289,2]
[328184774,1717023034026,-237832.4421,0.000289,2]
[328184775,1717023034035,-255.14873993,0.000289,2]
[328184776,1717023034044,-457.6026752,0.00028904,2]
[328184777,1717023034054,-524.95,0.00028919,2]
[328184778,1717023034063,-524.95,0.00028919,2]
[328184779,1717023034072,-524.95,0.00028919,2]
[328184780,1717023034081,-524.95,0.00028919,2]
[328184781,1717023034091,-524.95,0.00028919,2]
[328184782,1717023034099,-1049.4,0.00028919,2]
[328184783,1717023034108,-524.95,0.00028919,2]
[328184784,1717023034118,-155.36105778,0.00028952,2]
[328184785,1717023034127,-150.98821789,0.00028969,2]
[328184786,1717023034136,-3456.045817,0.00028985,2]
[328184787,1717023034146,-2615.6511751,0.00028985,2]
[328184788,1717023034155,-1743.622141,0.00028985,2]
[328184789,1717023034164,-219.83229361,0.00028989,2]
[328184790,1717023034173,-225.92,0.00028989,2]
[328184791,1717023034261,-151.32,0.0002899,2]
[328184792,1717023034270,-225.92,0.0002899,2]
[328184793,1717023034279,-157.20334897,0.00028998,2]
[328184794,1717023034288,-400.51561206,0.00028998,2]
[328184795,1717023034297,-205.13280041,0.00028998,2]
[328184796,1717023034306,-155.0,0.00028998,2]
[328184797,1717023034315,-155.0,0.00028998,2]
[328184798,1717023034324,-155.33547321,0.00028998,2]
[328184799,1717023034333,-23447.18956077,0.00028998,5]
[328184800,1717023034342,-1382.51190983,0.00028998,2]
[328184801,1717023034351,-118869.48243315,0.00028999,2]
[328184802,1717023034360,-28927.22205807,0.00029,2]
[328184803,1717023034405,-16046.73382465,0.00029,2]
[328184804,1717023034416,-260.79473481,0.00029,2]
[328184818,1717023040825,-292.58,0.0002899,10]
[328184819,1717023040835,-3496.02,0.00029,2]
[328184820,1717023040846,-109534.94825081,0.00029,2]
[328184821,1717023041863,-82848.91355812,0.00029,2]
[328184822,1717023041875,-1450.0,0.00029,2]
[328184823,1717023041885,-1484.72664705,0.00029,2]
[328184824,1717023041895,-19000.0,0.00029,2]
[328184825,1717023041906,-344.0,0.00029,2]
[328184826,1717023041917,-150.0,0.00029,2]
[328184827,1717023041926,-150.0,0.00029,6]
[328184828,1717023041935,-1000.0,0.00029,2]
[328184829,1717023041944,-152.68932534,0.00029005,2]
[328184830,1717023041954,-5000.0,0.00029033,2]
[328184831,1717023041963,-167.91712553,0.00029054,2]
[328184832,1717023041972,-163.00887148,0.00029064,2]
[328184833,1717023041981,-152.31286807,0.00029064,2]
[328184834,1717023041990,-160.35351265,0.00029068,2]
[328184835,1717023042000,-225.92,0.00029154,2]
[328184836,1717023042009,-225.92,0.00029154,2]
[328184837,1717023042019,-159.25974206,0.0002916,2]
[328184838,1717023042029,-5246.58295937,0.00029164,2]
[328184839,1717023042038,-172.66527975,0.00029164,2]
[328184840,1717023042047,-415.6,0.00029178,2]
[328184841,1717023042058,-1738.55,0.00029178,2]
[328184842,1717023042067,-152.60795887,0.00029203,2]
[328184843,1717023042076,-225.92,0.00029254,2]
[328184844,1717023042086,-1742.42387438,0.00029262,2]
[328184845,1717023042095,-295786.36990817,0.00029264,11]
[328184846,1717023042107,-132129.89709038,0.00029264,11]
[328184847,1717023042116,-25000.0,0.00029264,2]
[328184848,1717023042125,-159.618612,0.00029264,7]
[328184849,1717023042134,-159.618612,0.00029264,7]
[328184850,1717023042144,-151.0,0.00029264,7]
[328184851,1717023042153,-186.943992,0.00029264,7]
[328184852,1717023042162,-457.6026752,0.00029303,2]
[328184853,1717023042172,-1712.08314398,0.00029303,2]
[328184854,1717023042182,-155.76621298,0.00029327,2]
[328184855,1717023042191,-1500.0,0.00029366,2]
[328184856,1717023042201,-166.83499667,0.00029384,2]
[328184857,1717023042211,-163.78,0.00029452,2]
[328184858,1717023042220,-300.0,0.00029452,2]
[328184859,1717023042230,-150.0,0.00029452,2]
[328184860,1717023042239,-421.53,0.00029452,2]
[328184861,1717023042248,-352.49,0.00029452,2]
[328184862,1717023042257,-421.53,0.00029452,2]
[328184863,1717023042267,-150.0,0.00029452,2]
[328184868,1717023042394,-421.53,0.00029452,2]
[328184869,1717023042412,-150.0,0.00029452,2]
[328184870,1717023042422,-150.0,0.00029452,2]
[328184871,1717023042432,-163.78,0.00029452,2]
[328184872,1717023042450,-352.49,0.00029452,2]
[328184873,1717023042460,-163.78,0.00029452,2]
[328184874,1717023042469,-421.53,0.00029452,2]
[328184875,1717023042478,-150.0,0.00029452,2]
[328184876,1717023042487,-150.0,0.00029452,2]
[328184877,1717023042496,-352.49,0.00029452,2]
[328184878,1717023042505,-421.53,0.00029452,2]
[328184879,1717023042515,-522.86,0.00029452,2]
[328184880,1717023042525,-163.78,0.00029452,2]
[328184881,1717023042534,-150.0,0.00029452,2]
[328184882,1717023042544,-150.0,0.00029452,2]
[328184883,1717023042553,-352.49,0.00029452,2]
[328184884,1717023042562,-150.0,0.00029452,2]
[328184885,1717023042571,-163.78,0.00029452,2]
[328184886,1717023042581,-421.53,0.00029452,2]
[328184887,1717023042590,-150.0,0.00029452,2]
[328184888,1717023042599,-352.49,0.00029452,2]
[328184889,1717023042608,-421.53,0.00029452,2]
[328184890,1717023042618,-150.0,0.00029452,2]
[328184891,1717023042627,-703.09,0.00029452,2]
[328184892,1717023042636,-150.0,0.00029452,2]
[328184893,1717023042645,-163.24,0.00029452,2]
[328184894,1717023042654,-421.53,0.00029452,2]
[328184895,1717023042663,-150.0,0.00029452,2]
[328184896,1717023042673,-150.0,0.00029452,2]
[328184897,1717023042682,-421.53,0.00029452,2]
[328184898,1717023042691,-150.0,0.00029452,2]
[328184899,1717023042701,-150.0,0.00029452,2]
[328184900,1717023042714,-421.53,0.00029452,2]
[328184901,1717023042723,-150.0,0.00029452,2]
[328184902,1717023042732,-150.0,0.00029452,2]
[328184903,1717023042742,-840.51,0.00029452,2]
[328184904,1717023042751,-421.53,0.00029452,2]
[328184905,1717023042760,-421.53,0.00029452,2]
[328184906,1717023042769,-5246.58295933,0.00029458,2]
[328184907,1717023042779,-150.98821789,0.00029481,2]
[328184908,1717023042788,-184.99697368,0.00029492,2]
[328184910,1717023042798,-4808.3935227,0.000295,3]
[328184911,1717023042807,-226.17834961,0.000295,3]
[328184913,1717023042816,-416.448185,0.000295,2]
[328184915,1717023042825,-150.0,0.000295,6]
[328184917,1717023042834,-167.91712553,0.00029516,2]
[328184919,1717023042843,-1742.42387438,0.00029587,2]
[328184921,1717023042852,-1742.42387438,0.00029592,2]
[328184923,1717023042861,-2725.85,0.00029599,2]
[328184925,1717023042870,-25000.0,0.00029611,2]
[328184927,1717023042879,-155.36105778,0.00029685,2]
[328184929,1717023042888,-1662.36,0.00029687,2]
[328184931,1717023042897,-1700.0,0.000297,10]
[328184933,1717023042906,-457.6026752,0.00029702,2]
[328184935,1717023042915,-184.99697368,0.00029718,2]
[328184939,1717023042925,-4129.64,0.00029728,2]
[328184941,1717023042934,-524.71,0.00029741,2]
[328184943,1717023042943,-150.0,0.00029752,2]
[328184945,1717023042951,-5246.58295933,0.00029752,2]
[328184946,1717023042960,-154.52980888,0.00029768,2]
[328184948,1717023042970,-219.83229361,0.0002979,2]
[328184950,1717023042978,-151.32,0.0002979,2]
[328184951,1717023042987,-225.92,0.0002979,2]
[328184952,1717023042996,-225.92,0.0002979,2]
[328184953,1717023043005,-146500.2757891,0.000298,2]
[328184954,1717023043109,-7500.0,0.00028899,2]
[328184955,1717023043118,-7780.65467486,0.000298,2]
[328184956,1717023043163,-139150.97471619,0.000298,2]
[328184957,1717023043175,-3177.13277446,0.000298,2]
[328184963,1717023105155,111.37949624,0.000275,120]
[328184987,1717024232246,-437.04924005,0.00013873,2]
[328184988,1717024232256,-596.65075995,0.00013972,2]
[328184989,1717024232270,-1153.78731127,0.00013972,2]
[328184990,1717024232279,-288.43,0.00013973,2]
[328184991,1717024232288,-150.0,0.00014323,2]
[328184992,1717024232298,-378.83157048,0.00014997,2]
[328184993,1717024232307,-150.0,0.00014998,2]
[328184994,1717024232318,-150.0,0.00014998,2]
[328184995,1717024232332,-2724.0,0.00015,2]
[328184996,1717024232342,-687.0,0.00015,2]
[328184997,1717024232352,-210.0,0.00016498,2]
[328184998,1717024232362,-210.0,0.00016498,2]
[328184999,1717024232371,-300.0,0.00017158,2]
[328185000,1717024232380,-2663.07,0.00017534,2]
[328185001,1717024232390,-2363.82,0.00017534,2]
[328185002,1717024232399,-2637.49003882,0.00017534,2]
[328185003,1717024232410,-455.94522447,0.00017534,2]
[328185004,1717024232442,-1458.18502786,0.00017534,2]
[328185005,1717024232453,-926.91922553,0.00017534,2]
[328185006,1717024232465,-1671.1711544,0.00017534,2]
[328185007,1717024232479,-398.74932892,0.00017534,2]
[328185008,1717024232489,-499.99,0.00017534,2]
[328185009,1717024232498,-8644.24,0.00017808,2]
[328185010,1717024232508,-410.89835827,0.00019,2]
[328185011,1717024232517,-1000.0,0.00019609,2]
[328185012,1717024232526,-547.45866534,0.0002,2]
[328185013,1717024232535,-226.37143728,0.000201,2]
[328185014,1717024232545,-155.0,0.00020446,2]
[328185015,1717024232555,-288.43,0.00020447,2]
[328185016,1717024232565,-503.29,0.00020953,2]
[328185017,1717024232575,-1250.0,0.00021,2]
[328185018,1717024232584,-166.24,0.00021918,2]
[328185019,1717024232594,-2000.0,0.00022516,2]
[328185020,1717024232603,-250.0,0.00022807,2]
[328185021,1717024232613,-1612.47,0.00022835,2]
[328185022,1717024232623,-368.23,0.00022872,2]
[328185023,1717024232633,-200.0,0.00022903,2]
[328185025,1717024232643,-374.4,0.00022973,2]
[328185027,1717024232654,-666.83,0.00022997,2]
[328185029,1717024232663,-1300.0,0.00023,2]
[328185031,1717024232673,-157.23,0.00023008,2]
[328185033,1717024232683,-625.6,0.00023061,2]
[328185036,1717024232693,-586.63,0.00023065,2]
[328185038,1717024232702,-250.0,0.00023076,2]